{"text_format":"1","workbook":"xlsx","n_sheets":1,"sheets":["Lykiltölur v.fjárhags"],"not_rendered":{"charts":0,"images":1,"macros":0,"external_links":0,"defined_names":0,"comments":0,"pivot_tables":0},"unopened":[],"bounds":{"document_bytes":16777216,"sheet_cells":100000,"rows_first":2000,"rows_last":500,"rows_between":2000,"halvings":0,"cell_chars":16384,"cell_head_chars":4096},"cells_cut":0,"cells_raw":0,"read":"whole","date_system":"1900"}

{"sheet":"Lykiltölur v.fjárhags","index":0,"n_rows":37,"n_cols":9,"rows_kept":37,"cut":false,"hidden":false,"merged":[[8,2,8,5],[8,1,9,1],[1,2,2,8],[3,2,3,8],[0,1,3,1]]}
[]
[null,null,"Yfirlit yfir fjárhag umsækjanda "]
[]
[null,null,"fylgiskjal með umsókn um viðurkenningu fræðsluaðila í framhaldsfræðslu"]
[]
[null,"Ekki má breyta texta i gráum reitum né breyta formúlum.","Nafn fræðsluaðila:"]
[null,"Bæta má við liðum og/eða breyta heiti þeirra til samræmis við ársreikninga.","Dagsetning: "]
[]
[null,"Lykiltölur","Samkvæmt ársreikningi",null,null,null,"Rekstraráætlun","Rekstraráætlun","Rekstraráætlun"]
[null,null,2020,2021,2022,2023,2024,2025,2026]
[null,"Tekjur:",{"$f":"SUM(C12:C13)","v":0},{"$f":"SUM(D12:D13)","v":0},0,0,0,0,0]
[null,"Styrkir"]
[null,"Rekstrartekjur"]
[null,"Gjöld:",{"$f":"SUM(C15:C21)","v":0},{"$f":"SUM(D15:D21)","v":0},0,0,0,0,0]
[null,"Laun og launatengd gjöld"]
[null,"Rekstur húsnæðis"]
[null,"Rekstur tölvukerfis, áhöld og símakostnaður"]
[null,"Rekstur mötuneytis"]
[null,"Kennslutengdur kostnaður"]
[null,"Skrifstofu og stjórnunarkostnaður"]
[null,"Afskriftir"]
[null,"Rekstrarhagn án fjárm.tekna og fj.m.gjalda",{"$f":"C11-C14","v":0},{"$f":"D11-D14","v":0},0,0,0,0,0]
[null,"Fjármagnsliðir (t.d. Fjármagnstekjur, gengismunur o.fl)"]
[null,"Áhrif af rekstri dótturfélags (ef á við)"]
[null,"Óreglulegir liðir"]
[null,"Hagnaður/Tap",{"$f":"C22+C23+C24+C25","v":0},0,0,0,0,0,0]
[]
[null,"Fastafjármunir"]
[null,"Handbært fé"]
[null,"Veltufjármunir "]
[null,"Skammtímaskuldir"]
[null,"Veltufjárhlutfall",{"$f":"IF(C31=0,\"\",(C30/(C31)))","v":""},{"$f":"IF(D31=0,\"\",(D30/(D31)))","v":""},{"$f":"IF(E31=0,\"\",(E30/(E31)))","v":""},""]
[null,"Langtímaskuldir"]
[null,"Eigið fé"]
[null,"Eignir samtals"]
[null,"Eiginfjárhlutfall",{"$f":"IF(C35=0,\"\",(C34/(C35)))","v":""},{"$f":"IF(D35=0,\"\",(D34/(D35)))","v":""},"",""]
[null,"Skuldahlutfall",{"$f":"IF(C35=0,\"\",(C31+C33)/C35)","v":""},{"$f":"IF(D35=0,\"\",(D31+D33)/D35)","v":""},"",""]